bitfinex-derivatives/quotes_SOLF0:USTF0_20250509
["timestamp","ask_amount","ask_price","bid_price","bid_amount"]
[1746822780350,28.06,172.47,172.45,5.7978]
[1746822781354,28.06,172.47,172.46,5.7975]
[1746822782357,28.06,172.47,172.4,28.06]
[1746822782759,28.06,172.47,172.44,5.7982]
[1746822783359,5.7975,172.46,172.44,5.7982]
[1746822783559,28.06,172.47,172.39,1.8399]
[1746822784150,5.799,172.42,172.39,7.6395]
[1746822784358,5.799,172.42,172.39,1.8399]
[1746822785155,5.799,172.42,172.39,7.6396]
[1746822785360,27.88,172.44,172.39,1.8399]
[1746822785762,33.6782,172.44,172.42,5.7988]
[1746822786167,28.06,172.47,172.42,5.7988]
[1746822786360,27.82,172.45,172.42,5.7988]
[1746822786561,27.82,172.45,172.41,5.7991]
[1746822787467,27.82,172.45,172.39,1.8399]
[1746822787964,27.82,172.45,172.44,5.7982]
[1746822788153,27.82,172.45,172.39,1.8399]
[1746822788567,33.6179,172.45,172.42,5.7987]
[1746822788767,27.82,172.45,172.39,1.8399]
[1746822789463,5.7982,172.44,172.41,5.7989]
[1746822789667,5.7982,172.44,172.39,1.8399]
[1746822789868,27.86,172.45,172.39,1.8399]
[1746822790568,5.7983,172.44,172.41,5.799]
[1746822792469,55.86,172.47,172.39,1.8399]
[1746822792870,61.6574,172.47,172.44,5.798]
[1746822793667,28.06,172.47,172.45,5.7978]
[1746822793866,28.06,172.47,172.39,1.8399]
[1746822794072,5.7976,172.46,172.43,5.7984]
[1746822794270,28.06,172.47,172.43,5.7984]
[1746822794969,28.06,172.47,172.39,1.8399]
[1746822794970,27.78,172.46,172.44,5.7982]
[1746822795569,28.06,172.47,172.44,5.7982]
[1746822795770,5.7974,172.47,172.44,5.7982]
[1746822795970,69.61965912,172.52,172.4,65.34263105]
[1746822796270,28.06,172.53,172.4,422.34263105]
[1746822796771,28.06,172.53,172.5,5.7961]
[1746822797074,33.8552,172.53,172.5,5.7961]
[1746822797272,33.8552,172.53,172.4,422.34263105]
[1746822798469,33.8552,172.53,172.49,5.7962]
[1746822799469,33.8552,172.53,172.5,5.796]
[1746822799668,55.72,172.53,172.4,422.34263105]
[1746822800068,28.06,172.53,172.51,5.7956]
[1746822800370,55.72,172.53,172.51,5.7956]
[1746822801175,55.72,172.53,172.5,5.7961]
[1746822801778,61.5152,172.53,172.49,5.7964]
[1746822801977,61.5152,172.53,172.45,1.8977]
[1746822802277,5.7956,172.52,172.45,1.8977]
[1746822802876,5.7956,172.52,172.49,5.7963]
[1746822803178,61.5153,172.53,172.45,1.8977]
[1746822803773,61.5153,172.53,172.49,5.7963]
[1746822804178,5.7955,172.52,172.49,5.7963]
[1746822805074,55.72,172.53,172.49,5.7963]
[1746822805979,5.7957,172.52,172.49,5.7963]
[1746822806678,5.7957,172.52,172.48,5.7967]
[1746822807379,55.72,172.53,172.47,5.7971]
[1746822807575,55.72,172.53,172.45,1.8977]
[1746822808079,61.5153,172.53,172.45,1.8977]
[1746822809473,61.5153,172.53,172.49,5.7963]
[1746822810080,61.5153,172.53,172.5,5.7961]
[1746822810975,5.7955,172.52,172.49,5.7964]
[1746822812477,5.7959,172.51,172.48,5.7967]
[1746822812684,55.72,172.53,172.48,5.7967]
[1746822813284,5.7961,172.51,172.48,5.7967]
[1746822813784,5.7961,172.51,172.49,5.7964]
[1746822814382,5.7956,172.52,172.45,1.8977]
[1746822814885,5.7956,172.52,172.49,5.7963]
[1746822815086,5.7959,172.51,172.49,5.7963]
[1746822815682,5.7956,172.52,172.5,5.7962]
[1746822816381,61.5152,172.53,172.51,5.7957]
[1746822818085,28.06,172.53,172.52,5.7955]
[1746822818889,33.8553,172.53,172.46,27.48]
[1746822819391,5.7955,172.52,172.5,5.796]
[1746822819589,5.7955,172.52,172.46,27.48]
[1746822819890,5.7955,172.52,172.49,5.7963]
[1746822820592,33.8553,172.53,172.5,5.7961]
[1746822823391,5.7955,172.52,172.49,5.7963]
[1746822824295,5.7955,172.52,172.46,27.48]
[1746822824296,5.7955,172.52,172.5,5.7961]
[1746822826097,5.7955,172.52,172.49,5.7964]
[1746822826299,5.7959,172.51,172.49,5.7964]
[1746822826599,28.06,172.53,172.49,5.7964]
[1746822826901,5.7957,172.52,172.49,5.7964]
[1746822828001,5.7957,172.52,172.5,5.7962]
[1746822828806,33.8553,172.53,172.5,5.7962]
[1746822829101,28.06,172.53,172.5,5.7962]
[1746822829303,33.8553,172.53,172.5,5.7962]
[1746822829504,28.06,172.53,172.5,5.7962]
[1746822831004,5.7955,172.52,172.5,5.7962]
[1746822832299,28.06,172.53,172.49,5.7964]
[1746822832502,5.7959,172.51,172.49,5.7964]
[1746822833306,5.7963,172.5,172.48,5.7967]
[1746822833501,28.06,172.53,172.45,29.5977]
[1746822834004,5.7964,172.5,172.45,29.5977]
[1746822834509,5.7964,172.5,172.47,5.7969]
[1746822836606,5.7964,172.5,172.45,1.8977]
[1746822836807,5.796,172.51,172.45,1.8977]
[1746822837206,5.796,172.51,172.48,5.7966]
[1746822838107,5.7962,172.5,172.48,5.7966]
[1746822838306,5.7962,172.5,172.47,5.7971]
[1746822838705,5.7962,172.5,172.48,5.7968]
[1746822838905,5.796,172.51,172.48,5.7968]
[1746822839207,27.18,172.52,172.45,2.8977]
[1746822839208,27.18,172.52,172.49,5.7963]
[1746822839406,32.9757,172.52,172.49,5.7963]
[1746822840202,5.7959,172.51,172.48,5.7967]
[1746822840408,27.18,172.52,172.45,1.0]
[1746822840802,5.797,172.48,172.45,6.7976]
[1746822841607,27.26,172.49,172.45,1.0]
[1746822841809,36.64263105,172.48,172.45,1.0]
[1746822842202,5.7975,172.46,172.45,1.0]
[1746822845409,42.43973105,172.48,172.45,1.0]
[1746822845607,36.64263105,172.48,172.45,1.0]
[1746822847010,27.26,172.49,172.45,1.0]
[1746822847205,54.3,172.49,172.45,1.0]
[1746822847510,60.0967,172.49,172.46,5.7972]
[1746822847809,60.0967,172.49,172.45,1.0]
[1746822848311,5.7969,172.48,172.45,1.0]
[1746822848811,5.7969,172.48,172.45,6.7976]
[1746822849210,5.7975,172.46,172.45,1.0]
[1746822855107,5.7973,172.47,172.45,6.7978]
[1746822855307,27.26,172.49,172.45,1.0]
[1746822855714,33.0567,172.49,172.46,5.7975]
[1746822856108,27.26,172.49,172.45,1.0]
[1746822856304,5.7969,172.48,172.45,6.7977]
[1746822859114,5.7973,172.47,172.45,6.7977]
[1746822859717,5.797,172.48,172.46,5.7974]
[1746822862323,60.0566,172.49,172.47,5.7972]
[1746822862819,5.7969,172.48,172.46,5.7974]
[1746822863118,54.26,172.49,172.46,5.7974]
[1746822863318,54.26,172.49,172.45,1.0]
[1746822863518,60.0566,172.49,172.46,5.7975]
[1746822864620,60.0566,172.49,172.45,1.0]
[1746822864821,27.26,172.49,172.45,1.0]
[1746822865119,27.26,172.49,172.48,5.7969]
[1746822868425,27.26,172.49,172.47,5.797]
[1746822869124,33.0565,172.49,172.47,5.797]
[1746822869927,27.26,172.49,172.47,5.797]
[1746822870822,33.0565,172.49,172.47,5.797]
[1746822873137,27.26,172.49,172.47,5.797]
[1746822874430,33.0565,172.49,172.47,5.797]
[1746822875028,5.7969,172.48,172.46,5.7975]
[1746822876434,5.7974,172.47,172.45,1.0]
[1746822876636,27.26,172.49,172.45,1.0]
[1746822877537,5.7975,172.46,172.45,1.0]
[1746822885338,32.7773,172.47,172.45,1.0]
[1746822887237,26.98,172.47,172.45,1.0]
[1746822887441,5.7975,172.46,172.45,1.0]
[1746822889738,11.87859086,172.46,172.45,1.0]
[1746822891845,32.7773,172.47,172.45,1.0]
[1746822892145,53.94,172.5,172.45,1.0]
[1746822892444,26.96,172.5,172.45,1.0]
[1746822893137,32.7562,172.5,172.45,1.0]
[1746822893338,6.08109086,172.49,172.45,1.0]
[1746822893944,11.87779086,172.49,172.46,5.7975]
[1746822894145,38.85779086,172.49,172.46,5.7975]
[1746822895049,5.7969,172.48,172.45,6.7977]
[1746822895250,33.06109086,172.49,172.45,1.0]
[1746822895743,38.85769086,172.49,172.46,5.7972]
[1746822896543,33.06109086,172.49,172.47,5.7971]
[1746822898650,38.85759086,172.49,172.46,5.7974]
[1746822898949,38.85759086,172.49,172.45,1.0]
[1746822899148,11.87759086,172.49,172.45,1.0]
[1746822899449,6.08109086,172.49,172.45,1.0]
[1746822899646,6.08109086,172.47,172.45,1.0]
[1746822899851,53.92,172.46,172.45,1.0]
[1746822900050,59.7175,172.46,172.45,1.0]
[1746822901552,5.7984,172.44,172.41,5.7991]
[1746822902351,5.7986,172.43,172.4,7.7591]
[1746822902652,5.7986,172.43,172.4,1.9597]
[1746822903252,63.42323513,172.46,172.41,5.799]
[1746822903748,63.42323513,172.46,172.39,7.7501]
[1746822903947,63.42323513,172.46,172.36,1.0]
[1746822904852,5.7988,172.43,172.4,5.7994]
[1746822905051,63.42323513,172.46,172.36,1.0]
[1746822905351,26.96,172.42,172.36,1.0]
[1746822905552,53.92,172.42,172.36,1.0]
[1746822906953,5.7996,172.4,172.37,5.8002]
[1746822907850,5.7999,172.39,172.36,6.8008]
[1746822909456,5.8002,172.38,172.36,6.8008]
[1746822909758,53.92,172.42,172.36,6.8008]
[1746822910757,53.92,172.42,172.36,1.0]
[1746822911156,5.7995,172.41,172.36,1.0]
[1746822911757,5.7995,172.41,172.38,5.8002]
[1746822912861,5.7996,172.4,172.37,5.8004]
[1746822913059,53.92,172.42,172.36,1.0]
[1746822913259,9.50323513,172.4,172.36,1.0]
[1746822914149,5.8006,172.37,172.36,1.0]
[1746822914360,53.9,172.37,172.36,1.0]
[1746822915458,59.7006,172.37,172.36,1.0]
[1746822916861,53.9,172.37,172.36,1.0]
[1746822917062,53.9,172.37,172.36,6.8009]
[1746822918662,53.9,172.37,172.36,1.0]
[1746822919264,26.96,172.37,172.36,1.0]
[1746822919462,26.98,172.41,172.36,1.0]
[1746822919963,26.98,172.41,172.4,5.7995]
[1746822921259,26.98,172.41,172.39,5.7997]
[1746822921460,26.98,172.41,172.36,1.0]
[1746822921861,26.98,172.41,172.4,5.7995]
[1746822922254,26.98,172.41,172.38,5.8001]
[1746822922860,32.7793,172.41,172.38,5.8001]
[1746822923264,32.7793,172.41,172.37,5.8004]
[1746822924461,5.7996,172.4,172.37,5.8004]
[1746822924859,5.7996,172.4,172.38,5.8002]
[1746822925363,26.98,172.41,172.38,5.8002]
[1746822925556,53.92,172.41,172.37,5.8004]
[1746822925753,5.7997,172.4,172.37,5.8004]
[1746822926867,53.92,172.41,172.36,6.8008]
[1746822927067,53.92,172.41,172.36,1.0]
[1746822927467,5.8004,172.38,172.36,1.0]
[1746822928367,5.8006,172.37,172.36,1.0]
[1746822928673,59.6806,172.37,172.36,1.0]
[1746822929869,5.8012,172.35,172.32,6.8021]
[1746822931676,5.8012,172.35,172.33,5.8019]
[1746822931975,5.8012,172.35,172.32,1.0]
[1746822932271,5.8012,172.35,172.32,6.802]
[1746822932678,53.88,172.37,172.32,1.0]
[1746822932974,53.88,172.37,172.32,6.8022]
[1746822933277,5.8015,172.35,172.32,6.8022]
[1746822933576,53.88,172.37,172.32,6.8022]
[1746822934877,53.88,172.37,172.32,1.0]
[1746822935475,59.6807,172.37,172.34,5.8013]
[1746822936177,59.6807,172.37,172.35,5.8012]
[1746822937877,5.8009,172.36,172.34,5.8015]
[1746822938278,53.88,172.37,172.34,5.8015]
[1746822938478,59.6807,172.37,172.34,5.8015]
[1746822939380,5.8009,172.36,172.34,5.8015]
[1746822939572,53.88,172.37,172.34,5.8015]
[1746822940681,59.6809,172.37,172.34,5.8015]
[1746822942990,59.6809,172.37,172.35,5.8012]
[1746822943485,59.6809,172.37,172.34,5.8015]
[1746822944286,53.88,172.37,172.33,5.8018]
[1746822944494,9.50323513,172.36,172.32,1.0]
[1746822944989,5.8019,172.33,172.32,1.0]
[1746822945786,32.7419,172.33,172.32,1.0]
[1746822947490,5.8022,172.32,172.28,6.8035]
[1746822948288,63.36323513,172.33,172.28,1.0]
[1746822948487,9.50323513,172.29,172.22,1.9809]
[1746822948688,59.6437,172.28,172.25,5.8044]
[1746822948885,53.84,172.28,172.2,2.9827]
[1746822950089,53.84,172.28,172.25,5.8043]
[1746822950287,59.6438,172.28,172.25,5.8043]
[1746822951092,5.8039,172.27,172.24,5.8048]
[1746822951294,9.50323513,172.27,172.2,2.9827]
[1746822951993,5.8049,172.24,172.22,5.8056]
[1746822952492,5.8049,172.24,172.2,2.9827]
[1746822952893,5.8049,172.24,172.22,5.8056]
[1746822953293,5.8047,172.25,172.22,5.8056]
[1746822953489,9.50323513,172.27,172.2,2.9827]
[1746822953893,15.30723513,172.27,172.24,5.8046]
[1746822954294,9.50323513,172.27,172.2,2.9827]
[1746822954593,9.50323513,172.27,172.25,5.8044]
[1746822955689,9.50323513,172.27,172.2,2.9827]
[1746822955894,9.50323513,172.27,172.26,5.8043]
[1746822956994,53.84,172.28,172.26,5.8043]
[1746822957597,53.84,172.28,172.2,2.9827]
[1746822958395,59.6437,172.28,172.25,5.8044]
[1746822958900,5.804,172.27,172.25,5.8044]
[1746822959194,5.804,172.27,172.2,2.9827]
[1746822959195,5.804,172.27,172.24,5.8048]
[1746822959399,53.84,172.28,172.2,2.9827]
[1746822959592,9.50323513,172.26,172.2,2.9827]
[1746822959795,9.50323513,172.26,172.2,6.8062]
[1746822960090,9.50323513,172.26,172.2,1.0]
[1746822960295,9.50323513,172.23,172.2,1.0]
[1746822960491,53.8,172.22,172.2,1.0]
[1746822960887,5.8059,172.21,172.2,1.0]
[1746822961091,53.8,172.22,172.11,53.8]
[1746822961599,5.8067,172.19,172.11,53.8]
[1746822961798,53.8,172.22,172.11,53.8]
[1746822962098,5.8065,172.2,172.17,5.8071]
[1746822963500,5.8061,172.21,172.18,5.8068]
[1746822964093,5.8061,172.21,172.19,5.8066]
[1746822964402,53.8,172.22,172.11,53.8]
[1746822964894,53.8,172.22,172.19,5.8064]
[1746822965998,5.806,172.21,172.19,5.8064]
[1746822966998,59.6057,172.22,172.19,5.8064]
[1746822967499,53.8,172.22,172.19,5.8064]
[1746822967903,5.806,172.21,172.19,5.8064]
[1746822969399,5.806,172.21,172.18,5.8068]
[1746822969796,53.8,172.22,172.16,5.8074]
[1746822970000,53.8,172.22,172.12,4.8456]
[1746822970398,5.8072,172.18,172.15,5.8079]
[1746822970599,32.7272,172.18,172.15,5.8079]
[1746822970800,53.82,172.18,172.15,5.8079]
[1746822971001,53.82,172.18,172.12,4.8456]
[1746822971401,53.82,172.18,172.12,1.0]
[1746822973005,5.8078,172.16,172.12,1.0]
[1746822973903,5.8078,172.16,172.13,5.8086]
[1746822974102,5.8074,172.17,172.12,1.0]
[1746822974405,53.82,172.18,172.12,1.0]
[1746822976009,5.8077,172.16,172.14,5.8081]
[1746822976408,5.8077,172.16,172.12,1.0]
[1746822977503,5.8077,172.16,172.13,5.8084]
[1746822978507,5.8077,172.16,172.12,1.0]
[1746822978508,9.50323513,172.17,172.12,1.0]
[1746822979112,5.8086,172.13,172.12,1.0]
[1746822979311,59.6086,172.13,172.12,1.0]
[1746822982214,53.8,172.16,172.12,1.0]
[1746822982418,53.8,172.16,172.13,5.8086]
[1746822982609,59.6077,172.16,172.13,5.8086]
[1746822982809,32.7277,172.16,172.13,5.8086]
[1746822983014,32.7277,172.16,172.12,1.0]
[1746822983213,32.7277,172.16,172.13,5.8086]
[1746822983415,26.92,172.16,172.12,1.0]
[1746822984917,26.92,172.16,172.14,5.8081]
[1746822985209,32.7277,172.16,172.14,5.8081]
[1746822985920,26.92,172.16,172.14,5.8081]
[1746822986825,32.7277,172.16,172.14,5.8081]
[1746822987121,26.92,172.16,172.14,5.8081]
[1746822988321,26.92,172.16,172.15,5.808]
[1746822990630,26.86,172.18,172.17,5.8073]
[1746822990831,26.88,172.2,172.13,3.6214]
[1746822991028,26.88,172.2,172.13,5.5322]
[1746822991330,26.88,172.2,172.18,5.8068]
[1746822994430,26.88,172.2,172.19,5.8066]
[1746822995434,26.86,172.23,172.21,5.8059]
[1746822996134,5.8053,172.23,172.2,5.8062]
[1746822996937,32.6453,172.23,172.2,5.8062]
[1746822998036,32.6453,172.23,172.21,5.8059]
[1746822998232,26.84,172.23,172.21,5.8059]
[1746822998431,125.31880055,172.24,172.21,5.8059]
[1746822998632,152.15880055,172.24,172.21,5.8059]
[1746822999031,146.35380055,172.24,172.22,5.8056]
[1746822999233,119.51380055,172.24,172.22,5.8056]
[1746822999431,119.51380055,172.24,172.15,53.7]
[1746823000234,125.31890055,172.24,172.21,5.8059]
[1746823000634,32.6651,172.24,172.21,5.8059]
[1746823002039,26.86,172.24,172.15,53.7]
[1746823002234,26.84,172.27,172.15,53.7]
[1746823002437,26.84,172.27,172.15,410.7]
[1746823002735,32.6441,172.27,172.24,5.8048]
[1746823003338,26.84,172.27,172.25,5.8045]
[1746823004238,26.84,172.27,172.24,5.8047]
[1746823005038,5.8044,172.26,172.24,5.8047]
[1746823006339,5.8041,172.27,172.24,5.8047]
[1746823007645,32.6638,172.28,172.25,5.8046]
[1746823007938,26.86,172.28,172.25,5.8046]
[1746823008242,5.8039,172.27,172.24,5.8048]
[1746823009643,5.8045,172.26,172.23,5.8052]
[1746823009832,5.8045,172.26,172.19,5.6285]
[1746823009833,26.86,172.28,172.19,3.8183]
[1746823010236,5.8055,172.23,172.2,5.8062]
[1746823011541,32.665,172.24,172.21,5.8059]
[1746823011736,26.86,172.24,172.21,5.8059]
[1746823011941,26.86,172.24,172.19,3.8183]
[1746823012141,5.8053,172.23,172.2,5.8061]
[1746823012441,26.86,172.24,172.19,3.8183]
[1746823012942,5.8053,172.23,172.2,5.806]
[1746823013944,26.86,172.24,172.19,3.8183]
[1746823014443,32.665,172.24,172.21,5.8059]
[1746823015049,5.8053,172.23,172.21,5.8059]
[1746823016047,5.8053,172.23,172.2,5.8062]
[1746823018847,32.665,172.24,172.21,5.8059]
[1746823020148,26.86,172.24,172.21,5.8059]
[1746823020341,26.86,172.24,172.15,41.92013513]
[1746823020646,55.5558,172.28,172.19,26.78]
[1746823020845,5.8045,172.26,172.22,5.8054]
[1746823021049,55.5558,172.28,172.22,5.8054]
[1746823021347,5.8048,172.25,172.22,5.8054]
[1746823023050,65.05903513,172.28,172.19,26.78]
[1746823023348,65.05903513,172.28,172.15,372.12013513]
[1746823023544,65.05903513,172.28,172.16,26.78]
[1746823023744,5.8055,172.23,172.16,26.78]
[1746823024449,5.8058,172.22,172.19,5.8064]
[1746823025249,5.8065,172.2,172.15,3.7942]
[1746823025448,53.58,172.24,172.15,3.7942]
[1746823025943,5.8058,172.22,172.18,5.8067]
[1746823026142,53.58,172.24,172.15,3.7942]
[1746823026342,1.8734,172.27,172.15,30.5942]
[1746823026542,26.8,172.26,172.16,28.5976]
[1746823027145,26.8,172.26,172.23,5.805]
[1746823028649,26.8,172.26,172.16,28.5976]
[1746823029346,5.8055,172.23,172.19,5.8066]
[1746823029648,5.8055,172.23,172.16,28.5976]
[1746823029849,5.8055,172.23,172.19,5.8063]
[1746823030451,26.76,172.24,172.18,5.8069]
[1746823031348,5.8062,172.21,172.17,5.8072]
[1746823031647,26.8,172.22,172.15,1.812]
[1746823031950,5.8063,172.2,172.17,5.807]
[1746823032151,26.8,172.22,172.15,1.812]
[1746823032852,26.8,172.22,172.18,5.8067]
[1746823033752,5.8062,172.21,172.18,5.8067]
[1746823034054,26.8,172.22,172.17,5.8072]
[1746823034350,32.6057,172.22,172.15,1.812]
[1746823034551,32.6057,172.22,172.18,5.8068]
[1746823035056,5.806,172.21,172.18,5.8068]
[1746823035251,5.806,172.21,172.17,5.8072]
[1746823036054,5.806,172.21,172.18,5.8069]
[1746823036259,32.6057,172.22,172.15,1.812]
[1746823036757,32.6057,172.22,172.18,5.8067]
[1746823036958,5.806,172.21,172.18,5.8067]
[1746823039258,5.8063,172.2,172.17,5.8071]
[1746823039458,26.8,172.22,172.15,1.812]
[1746823040062,5.8062,172.21,172.18,5.8069]
[1746823040368,26.8,172.22,172.18,5.8069]
[1746823040661,5.806,172.21,172.18,5.8069]
[1746823041063,1.8004,172.32,172.15,1.812]
[1746823041256,5.8049,172.25,172.15,1.812]
[1746823041461,32.6049,172.25,172.15,28.612]
[1746823041762,32.6049,172.25,172.16,26.76]
[1746823041963,32.6049,172.25,172.21,5.8057]
[1746823042163,26.8,172.25,172.16,26.76]
[1746823042662,26.8,172.25,172.2,5.8062]
[1746823042857,26.8,172.25,172.16,26.76]
[1746823043060,53.56,172.25,172.17,3.766]
[1746823044464,53.56,172.25,172.24,5.8049]
[1746823044668,26.8,172.25,172.24,5.8049]
[1746823044868,26.76,172.29,172.2,26.76]
[1746823045067,26.76,172.29,172.26,5.804]
[1746823045667,26.76,172.29,172.21,1.9248]
[1746823046468,32.5635,172.29,172.21,1.9248]
[1746823046667,26.76,172.29,172.21,1.9248]
[1746823047167,32.5634,172.29,172.26,5.8042]
[1746823048567,5.8036,172.28,172.26,5.8042]
[1746823049864,5.8036,172.28,172.25,5.8044]
[1746823050575,5.8036,172.28,172.26,5.8042]
[1746823052071,32.5634,172.29,172.26,5.8042]
[1746823053775,5.8037,172.28,172.26,5.8042]
[1746823054076,5.8037,172.28,172.21,1.9248]
[1746823054077,5.8037,172.28,172.25,5.8044]
[1746823054575,5.8037,172.28,172.26,5.8042]
[1746823054774,32.5634,172.29,172.26,5.8042]
[1746823055777,26.76,172.29,172.27,5.8038]
[1746823057078,26.76,172.29,172.28,5.8036]
[1746823059783,26.76,172.29,172.21,1.9248]
[1746823060473,32.5635,172.29,172.26,5.8041]
[1746823066682,26.76,172.29,172.21,1.9248]
[1746823067182,26.76,172.29,172.28,5.8036]
[1746823067580,26.76,172.29,172.21,1.9248]
[1746823067981,32.5635,172.29,172.21,1.9248]
[1746823068179,32.5635,172.29,172.26,5.8041]
[1746823070382,32.5635,172.29,172.21,1.9248]
[1746823070684,26.76,172.29,172.27,5.8039]
[1746823071387,32.5633,172.29,172.27,5.8039]
[1746823071590,26.76,172.29,172.27,5.8039]
[1746823071887,26.76,172.29,172.28,5.8036]
[1746823073393,26.76,172.29,172.27,5.8038]
[1746823073995,26.76,172.29,172.21,1.9248]
[1746823074897,32.5635,172.29,172.21,1.9248]
[1746823075098,26.76,172.29,172.21,1.9248]
[1746823075897,5.8036,172.28,172.26,5.8043]
[1746823076897,32.5634,172.29,172.26,5.8043]
[1746823078998,32.5634,172.29,172.27,5.8039]
[1746823080196,26.76,172.29,172.27,5.8039]
[1746823082594,26.76,172.29,172.28,5.8036]
[1746823082796,26.72,172.39,172.27,6.08820345]
[1746823083096,32.52,172.39,172.31,6.08534863]
[1746823083398,26.72,172.39,172.31,6.08534863]
[1746823083588,26.72,172.39,172.32,1.9512]
[1746823083991,26.72,172.39,172.32,8.03654863]
[1746823084398,26.72,172.39,172.36,5.8006]
[1746823085998,32.52,172.39,172.36,5.8006]
[1746823086299,26.72,172.39,172.36,5.8006]
[1746823088000,32.5199,172.39,172.36,5.8006]
[1746823088698,26.72,172.39,172.36,5.8006]
[1746823089102,26.72,172.39,172.37,5.8005]
[1746823089405,26.72,172.43,172.34,26.7]
[1746823089597,26.72,172.43,172.4,5.7993]
[1746823091504,26.72,172.43,172.36,1.0]
[1746823092201,26.72,172.43,172.4,5.7993]
[1746823093005,32.5187,172.43,172.39,5.7998]
[1746823093203,26.72,172.43,172.36,1.0]
[1746823093704,5.7993,172.41,172.38,5.8]
[1746823094303,5.7989,172.42,172.38,5.8]
[1746823094603,5.7989,172.42,172.39,5.7998]
[1746823096204,26.72,172.43,172.39,5.7998]
[1746823096803,5.7989,172.42,172.39,5.7998]
[1746823100019,5.7992,172.41,172.38,5.8002]
[1746823101301,26.68,172.41,172.36,1.0]
[1746823101510,36.18746398,172.41,172.36,1.0]
[1746823102010,5.8004,172.38,172.36,1.0]
[1746823102708,5.8006,172.37,172.36,1.0]
[1746823107513,26.68,172.37,172.29,26.7]
[1746823107813,9.50746398,172.35,172.25,1.9271]
[1746823108003,26.66,172.34,172.25,1.9271]
[1746823108210,26.68,172.33,172.25,1.9271]
[1746823108810,5.8028,172.31,172.28,5.8034]
[1746823109511,26.68,172.33,172.26,5.804]
[1746823109909,26.68,172.33,172.25,1.9271]
[1746823110409,5.8028,172.31,172.28,5.8035]
[1746823112714,5.8023,172.32,172.29,5.8032]
[1746823112911,26.68,172.33,172.25,1.9271]
[1746823113315,5.8028,172.31,172.27,5.8037]
[1746823113612,26.68,172.3,172.27,5.8037]
[1746823114414,32.483,172.3,172.27,5.8037]
[1746823114913,26.68,172.3,172.28,5.8036]
[1746823118322,32.483,172.3,172.27,5.8038]
[1746823119319,32.483,172.3,172.28,5.8036]
[1746823120011,26.68,172.3,172.29,5.8032]
[1746823120319,26.68,172.32,172.25,1.9271]
[1746823121021,5.8029,172.31,172.27,5.8039]
[1746823121218,26.68,172.32,172.27,5.8039]
[1746823121421,26.68,172.3,172.27,5.8039]
[1746823121822,32.483,172.3,172.27,5.8039]
[1746823122123,26.68,172.3,172.27,5.8039]
[1746823122419,32.483,172.3,172.27,5.8039]
[1746823122622,32.483,172.3,172.28,5.8036]
[1746823122819,26.68,172.3,172.25,1.9271]
[1746823123317,26.68,172.3,172.29,5.8032]
[1746823136028,26.66,172.34,172.33,5.8019]